[Event "Titled Tuesday Blitz September 28 2021"]
[White "Nozdrachev, Leonid"]
[Black "Pires, Marcos Vinicius Torsani"]
[WhiteFideId "24113433"]
[BlackFideId "2118939"]
[WhiteElo "2196"]
[BlackElo "2273"]
[Result "1-0"]
[Round "11"]
[TimeControl "180+1"]
[Date "2021.09.28"]
[WhiteClock "0:00:28"]
[BlackClock "0:00:14"]

1. e4 {[%clk 0:02:49]}  c5 {[%clk 0:02:59]} 2. c3 {[%clk 0:02:49]}  Nf6 {[%clk 0:02:59]} 3. e5 {[%clk 0:02:48]}  Nd5 {[%clk 0:02:59]} 4. Nf3 {[%clk 0:02:49]}  e6 {[%clk 0:02:58]} 5. d4 {[%clk 0:02:49]}  cxd4 {[%clk 0:02:59]} 6. cxd4 {[%clk 0:02:50]}  b6 {[%clk 0:02:59]} 7. Nc3 {[%clk 0:02:48]}  Nxc3 {[%clk 0:02:58]} 8. bxc3 {[%clk 0:02:49]}  Qc7 {[%clk 0:02:57]} 9. Bd2 {[%clk 0:02:48]}  Bb7 {[%clk 0:02:57]} 10. Be2 {[%clk 0:02:48]}  d6 {[%clk 0:02:58]} 11. O-O {[%clk 0:02:46]}  Nd7 {[%clk 0:02:57]} 12. exd6 {[%clk 0:02:45]}  Bxd6 {[%clk 0:02:57]} 13. Re1 {[%clk 0:02:42]}  O-O {[%clk 0:02:57]} 14. h3 {[%clk 0:02:41]}  Rac8 {[%clk 0:02:56]} 15. Bd3 {[%clk 0:02:38]}  Nf6 {[%clk 0:02:50]} 16. Rc1 {[%clk 0:02:34]}  Bf4 {[%clk 0:02:46]} 17. Ne5 {[%clk 0:02:33]}  Bxd2 {[%clk 0:02:45]} 18. Qxd2 {[%clk 0:02:34]}  Rfd8 {[%clk 0:02:44]} 19. Qe3 {[%clk 0:02:26]}  Bd5 {[%clk 0:02:33]} 20. c4 {[%clk 0:02:25]}  Bb7 {[%clk 0:02:31]} 21. a3 {[%clk 0:02:10]}  Qd6 {[%clk 0:02:30]} 22. Red1 {[%clk 0:02:07]}  g6 {[%clk 0:02:26]} 23. Qf4 {[%clk 0:02:04]}  Kg7 {[%clk 0:02:18]} 24. Be2 {[%clk 0:01:52]}  Qxa3 {[%clk 0:02:08]} 25. Rd3 {[%clk 0:01:47]}  Qe7 {[%clk 0:01:49]} 26. Bf3 {[%clk 0:01:46]}  Bxf3 {[%clk 0:01:39]} 27. Rxf3 {[%clk 0:01:47]}  Rc7 {[%clk 0:01:36]} 28. g4 {[%clk 0:01:37]}  h6 {[%clk 0:01:35]} 29. h4 {[%clk 0:01:26]}  Rf8 {[%clk 0:01:31]} 30. g5 {[%clk 0:01:22]}  hxg5 {[%clk 0:01:27]} 31. hxg5 {[%clk 0:01:23]}  Nh5 {[%clk 0:01:24]} 32. Qg4 {[%clk 0:01:19]}  a5 {[%clk 0:01:07]} 33. Kf1 {[%clk 0:01:09]}  a4 {[%clk 0:01:05]} 34. Qe4 {[%clk 0:01:09]}  a3 {[%clk 0:01:01]} 35. Rxf7+ {[%clk 0:01:05]}  Rxf7 {[%clk 0:00:46]} 36. Qxg6+ {[%clk 0:01:05]}  Kf8 {[%clk 0:00:45]} 37. Qxh5 {[%clk 0:00:54]}  Ke8 {[%clk 0:00:35]} 38. g6 {[%clk 0:00:50]}  Rg7 {[%clk 0:00:31]} 39. c5 {[%clk 0:00:34]}  a2 {[%clk 0:00:27]} 40. Ra1 {[%clk 0:00:31]}  bxc5 {[%clk 0:00:26]} 41. Rxa2 {[%clk 0:00:31]}  Qd6 {[%clk 0:00:14]} 42. Qh8+ {[%clk 0:00:28]} 1-0


[Site "https://www.chess.com"]

[Event "Titled Tuesday Blitz September 28 2021"]
[White "Oparin, Grigoriy"]
[Black "Perez Ponsa, Federico"]
[WhiteFideId "24125890"]
[BlackFideId "117927"]
[WhiteElo "2936"]
[BlackElo "2891"]
[Result "0-1"]
[Round "11"]
[TimeControl "180+1"]
[Date "2021.09.28"]
[WhiteClock "0:00:06"]
[BlackClock "0:00:56"]

1. Nf3 {[%clk 0:02:56]}  Nf6 {[%clk 0:03:00]} 2. g3 {[%clk 0:02:57]}  g6 {[%clk 0:03:00]} 3. Bg2 {[%clk 0:02:57]}  Bg7 {[%clk 0:03:00]} 4. c4 {[%clk 0:02:58]}  O-O {[%clk 0:03:00]} 5. Nc3 {[%clk 0:02:58]}  c5 {[%clk 0:02:59]} 6. d4 {[%clk 0:02:59]}  cxd4 {[%clk 0:02:58]} 7. Nxd4 {[%clk 0:03:00]}  Nc6 {[%clk 0:02:59]} 8. O-O {[%clk 0:03:00]}  d6 {[%clk 0:02:59]} 9. Nxc6 {[%clk 0:02:57]}  bxc6 {[%clk 0:03:00]} 10. Bg5 {[%clk 0:02:58]}  Rb8 {[%clk 0:02:48]} 11. Qd2 {[%clk 0:02:57]}  Be6 {[%clk 0:02:43]} 12. b3 {[%clk 0:02:56]}  Qd7 {[%clk 0:02:39]} 13. Rfd1 {[%clk 0:02:53]}  Bh3 {[%clk 0:02:36]} 14. Bh1 {[%clk 0:02:52]}  Rfd8 {[%clk 0:02:31]} 15. Rac1 {[%clk 0:02:52]}  c5 {[%clk 0:02:27]} 16. Bxf6 {[%clk 0:02:28]}  Bxf6 {[%clk 0:02:26]} 17. Ne4 {[%clk 0:02:28]}  Bg7 {[%clk 0:02:24]} 18. Ng5 {[%clk 0:02:24]}  Bf5 {[%clk 0:02:17]} 19. Bd5 {[%clk 0:02:16]}  Rf8 {[%clk 0:02:15]} 20. Be4 {[%clk 0:02:06]}  Bh6 {[%clk 0:02:02]} 21. Bxf5 {[%clk 0:01:46]}  Qxf5 {[%clk 0:02:02]} 22. f4 {[%clk 0:01:46]}  Bxg5 {[%clk 0:01:54]} 23. fxg5 {[%clk 0:01:46]}  f6 {[%clk 0:01:53]} 24. gxf6 {[%clk 0:01:46]}  Rxf6 {[%clk 0:01:53]} 25. Rf1 {[%clk 0:01:45]}  Qe5 {[%clk 0:01:52]} 26. Rxf6 {[%clk 0:01:45]}  Qxf6 {[%clk 0:01:49]} 27. Rf1 {[%clk 0:01:30]}  Qe6 {[%clk 0:01:49]} 28. Qf4 {[%clk 0:01:29]}  Kg7 {[%clk 0:01:45]} 29. e4 {[%clk 0:01:25]}  Qf6 {[%clk 0:01:41]} 30. Qxf6+ {[%clk 0:01:25]}  exf6 {[%clk 0:01:42]} 31. Rd1 {[%clk 0:01:25]}  Rb6 {[%clk 0:01:41]} 32. Kf2 {[%clk 0:01:26]}  Kf7 {[%clk 0:01:42]} 33. Ke3 {[%clk 0:01:26]}  Ke6 {[%clk 0:01:42]} 34. Kd3 {[%clk 0:01:23]}  a5 {[%clk 0:01:40]} 35. Ke3 {[%clk 0:00:56]}  a4 {[%clk 0:01:38]} 36. Rd3 {[%clk 0:00:57]}  axb3 {[%clk 0:01:38]} 37. axb3 {[%clk 0:00:57]}  Ra6 {[%clk 0:01:39]} 38. h4 {[%clk 0:00:57]}  Ra1 {[%clk 0:01:39]} 39. Kf3 {[%clk 0:00:57]}  h5 {[%clk 0:01:38]} 40. Ke3 {[%clk 0:00:57]}  Rb1 {[%clk 0:01:34]} 41. Kf3 {[%clk 0:00:55]}  Rb2 {[%clk 0:01:32]} 42. Kf4 {[%clk 0:00:44]}  Rf2+ {[%clk 0:01:23]} 43. Ke3 {[%clk 0:00:44]}  Rf1 {[%clk 0:01:23]} 44. Ke2 {[%clk 0:00:39]}  Ra1 {[%clk 0:01:21]} 45. Kf3 {[%clk 0:00:38]}  Re1 {[%clk 0:01:17]} 46. Kf4 {[%clk 0:00:33]}  Rf1+ {[%clk 0:01:17]} 47. Ke3 {[%clk 0:00:33]}  g5 {[%clk 0:01:18]} 48. hxg5 {[%clk 0:00:31]}  fxg5 {[%clk 0:01:19]} 49. Rd5 {[%clk 0:00:31]}  g4 {[%clk 0:01:17]} 50. e5 {[%clk 0:00:26]}  Re1+ {[%clk 0:01:11]} 51. Kf4 {[%clk 0:00:21]}  Rxe5 {[%clk 0:01:11]} 52. Rd2 {[%clk 0:00:15]}  Rf5+ {[%clk 0:01:10]} 53. Ke4 {[%clk 0:00:16]}  Rf3 {[%clk 0:01:11]} 54. Rh2 {[%clk 0:00:16]}  Rxg3 {[%clk 0:01:09]} 55. Rxh5 {[%clk 0:00:17]}  Rxb3 {[%clk 0:01:09]} 56. Rh6+ {[%clk 0:00:16]}  Kd7 {[%clk 0:01:09]} 57. Rg6 {[%clk 0:00:14]}  g3 {[%clk 0:01:09]} 58. Kf5 {[%clk 0:00:06]}  Rc3 {[%clk 0:01:08]} 59. Ke4 {[%clk 0:00:06]}  Rxc4+ {[%clk 0:01:08]} 60. Kd3 {[%clk 0:00:07]}  Ra4 {[%clk 0:01:06]} 61. Kc3 {[%clk 0:00:08]}  Kc6 {[%clk 0:01:06]} 62. Kb3 {[%clk 0:00:07]}  Rb4+ {[%clk 0:01:05]} 63. Kc3 {[%clk 0:00:08]}  Rh4 {[%clk 0:01:03]} 64. Rxg3 {[%clk 0:00:08]}  d5 {[%clk 0:01:04]} 65. Rg8 {[%clk 0:00:09]}  Rh3+ {[%clk 0:01:04]} 66. Kc2 {[%clk 0:00:09]}  Kb5 {[%clk 0:01:04]} 67. Rg4 {[%clk 0:00:10]}  d4 {[%clk 0:01:05]} 68. Rg1 {[%clk 0:00:10]}  Kc4 {[%clk 0:01:05]} 69. Kd1 {[%clk 0:00:10]}  Rh2 {[%clk 0:01:05]} 70. Rg3 {[%clk 0:00:10]}  Ra2 {[%clk 0:01:04]} 71. Rh3 {[%clk 0:00:10]}  d3 {[%clk 0:01:04]} 72. Rh5 {[%clk 0:00:10]}  Kd4 {[%clk 0:01:04]} 73. Kc1 {[%clk 0:00:10]}  c4 {[%clk 0:01:04]} 74. Kb1 {[%clk 0:00:11]}  Rg2 {[%clk 0:01:05]} 75. Rh1 {[%clk 0:00:10]}  Kc3 {[%clk 0:01:05]} 76. Rc1+ {[%clk 0:00:11]}  Kb3 {[%clk 0:01:05]} 77. Rd1 {[%clk 0:00:11]}  Rb2+ {[%clk 0:01:05]} 78. Ka1 {[%clk 0:00:11]}  d2 {[%clk 0:00:56]} 79. Rh1 {[%clk 0:00:06]}  c3 {[%clk 0:00:56]} 0-1


[Site "https://www.chess.com"]

[Event "Titled Tuesday Blitz September 28 2021"]
[White "Pajeken, Jakob Leon"]
[Black "Karttunen, Mika"]
[WhiteFideId "12942839"]
[BlackFideId "502081"]
[WhiteElo "2351"]
[BlackElo "2343"]
[Result "1-0"]
[Round "11"]
[TimeControl "180+1"]
[Date "2021.09.28"]
[WhiteClock "0:00:09"]
[BlackClock "0:00:07"]

1. d4 {[%clk 0:03:00]}  Nf6 {[%clk 0:02:55]} 2. Nf3 {[%clk 0:03:01]}  e6 {[%clk 0:02:45]} 3. Bf4 {[%clk 0:03:00]}  Be7 {[%clk 0:02:42]} 4. h3 {[%clk 0:02:58]}  O-O {[%clk 0:02:42]} 5. c3 {[%clk 0:02:56]}  b6 {[%clk 0:02:41]} 6. e3 {[%clk 0:02:55]}  Bb7 {[%clk 0:02:40]} 7. Nbd2 {[%clk 0:02:56]}  d6 {[%clk 0:02:40]} 8. Bd3 {[%clk 0:02:54]}  Nbd7 {[%clk 0:02:40]} 9. Qe2 {[%clk 0:02:51]}  a6 {[%clk 0:02:35]} 10. a4 {[%clk 0:02:50]}  c5 {[%clk 0:02:35]} 11. O-O {[%clk 0:02:44]}  Qc7 {[%clk 0:02:20]} 12. Bh2 {[%clk 0:02:43]}  Rfe8 {[%clk 0:01:52]} 13. e4 {[%clk 0:02:40]}  e5 {[%clk 0:01:33]} 14. d5 {[%clk 0:02:30]}  g6 {[%clk 0:01:05]} 15. g4 {[%clk 0:02:28]}  h5 {[%clk 0:01:02]} 16. Ne1 {[%clk 0:02:22]}  hxg4 {[%clk 0:00:58]} 17. hxg4 {[%clk 0:02:22]}  Nh7 {[%clk 0:00:46]} 18. Ng2 {[%clk 0:02:19]}  Bg5 {[%clk 0:00:44]} 19. Nf3 {[%clk 0:02:12]}  Bh6 {[%clk 0:00:41]} 20. Bg3 {[%clk 0:02:04]}  Qd8 {[%clk 0:00:35]} 21. Nd2 {[%clk 0:01:51]}  Kg7 {[%clk 0:00:27]} 22. Nc4 {[%clk 0:01:49]}  Qe7 {[%clk 0:00:24]} 23. f3 {[%clk 0:01:47]}  Rh8 {[%clk 0:00:22]} 24. Kf2 {[%clk 0:01:45]}  Bg5 {[%clk 0:00:19]} 25. Rh1 {[%clk 0:01:43]}  Nhf6 {[%clk 0:00:18]} 26. Na3 {[%clk 0:01:41]}  Rxh1 {[%clk 0:00:15]} 27. Rxh1 {[%clk 0:01:40]}  Nh7 {[%clk 0:00:10]} 28. Ne3 {[%clk 0:01:26]}  Nhf6 {[%clk 0:00:10]} 29. Ke1 {[%clk 0:01:23]}  Ng8 {[%clk 0:00:10]} 30. Nd1 {[%clk 0:01:21]}  Nh6 {[%clk 0:00:10]} 31. Ne3 {[%clk 0:01:12]}  Nf6 {[%clk 0:00:09]} 32. Ng2 {[%clk 0:01:10]}  Qc7 {[%clk 0:00:08]} 33. Bh4 {[%clk 0:01:05]}  Nh7 {[%clk 0:00:08]} 34. Bf2 {[%clk 0:01:01]}  Qd7 {[%clk 0:00:05]} 35. Be3 {[%clk 0:01:00]}  Qxa4 {[%clk 0:00:04]} 36. Bxg5 {[%clk 0:00:56]}  Nxg5 {[%clk 0:00:04]} 37. f4 {[%clk 0:00:53]}  exf4 {[%clk 0:00:04]} 38. Nxf4 {[%clk 0:00:53]}  Re8 {[%clk 0:00:04]} 39. Qh2 {[%clk 0:00:53]}  Rxe4+ {[%clk 0:00:02]} 40. Bxe4 {[%clk 0:00:51]}  Qxe4+ {[%clk 0:00:03]} 41. Kd1 {[%clk 0:00:47]}  Qf3+ {[%clk 0:00:02]} 42. Kc1 {[%clk 0:00:46]}  Qe3+ {[%clk 0:00:03]} 43. Kb1 {[%clk 0:00:46]}  Nh3 {[%clk 0:00:02]} 44. Nxh3 {[%clk 0:00:43]}  Nxg4 {[%clk 0:00:02]} 45. Qg1 {[%clk 0:00:41]}  Qe4+ {[%clk 0:00:02]} 46. Ka1 {[%clk 0:00:41]}  Bxd5 {[%clk 0:00:03]} 47. Nf2 {[%clk 0:00:16]}  Nxf2 {[%clk 0:00:02]} 48. Rh2 {[%clk 0:00:16]}  Nd3 {[%clk 0:00:02]} 49. Rd2 {[%clk 0:00:16]}  Ne5 {[%clk 0:00:02]} 50. Qd1 {[%clk 0:00:15]}  Be6 {[%clk 0:00:02]} 51. Rxd6 {[%clk 0:00:15]}  b5 {[%clk 0:00:02]} 52. Rxa6 {[%clk 0:00:15]}  b4 {[%clk 0:00:03]} 53. cxb4 {[%clk 0:00:15]}  cxb4 {[%clk 0:00:04]} 54. Nc2 {[%clk 0:00:16]}  b3 {[%clk 0:00:04]} 55. Nd4 {[%clk 0:00:15]}  Bg4 {[%clk 0:00:03]} 56. Qg1 {[%clk 0:00:11]}  Nd3 {[%clk 0:00:03]} 57. Nxb3 {[%clk 0:00:10]}  Qe5 {[%clk 0:00:02]} 58. Qd4 {[%clk 0:00:10]}  Qxd4 {[%clk 0:00:03]} 59. Nxd4 {[%clk 0:00:11]}  Bd1 {[%clk 0:00:02]} 60. Rd6 {[%clk 0:00:10]}  Nf4 {[%clk 0:00:01]} 61. b4 {[%clk 0:00:09]}  Bg4 {[%clk 0:00:01]} 62. b5 {[%clk 0:00:09]}  Nd3 {[%clk 0:00:01]} 63. b6 {[%clk 0:00:09]}  Nc5 {[%clk 0:00:02]} 64. Rd5 {[%clk 0:00:08]}  Nb7 {[%clk 0:00:02]} 65. Nc6 {[%clk 0:00:08]}  Kf6 {[%clk 0:00:02]} 66. Nd8 {[%clk 0:00:08]}  Nxd8 {[%clk 0:00:01]} 67. Rxd8 {[%clk 0:00:08]}  Bf3 {[%clk 0:00:02]} 68. Rd7 {[%clk 0:00:07]}  g5 {[%clk 0:00:02]} 69. b7 {[%clk 0:00:07]}  Bxb7 {[%clk 0:00:02]} 70. Rxb7 {[%clk 0:00:08]}  g4 {[%clk 0:00:03]} 71. Kb2 {[%clk 0:00:08]}  Kg6 {[%clk 0:00:03]} 72. Kc3 {[%clk 0:00:08]}  f5 {[%clk 0:00:04]} 73. Kd4 {[%clk 0:00:09]}  Kg5 {[%clk 0:00:05]} 74. Ke3 {[%clk 0:00:09]}  f4+ {[%clk 0:00:05]} 75. Ke4 {[%clk 0:00:09]}  g3 {[%clk 0:00:06]} 76. Rg7+ {[%clk 0:00:09]}  Kh4 {[%clk 0:00:06]} 77. Kf3 {[%clk 0:00:09]}  g2 {[%clk 0:00:07]} 78. Rxg2 {[%clk 0:00:09]} 1-0


[Site "https://www.chess.com"]

[Event "Titled Tuesday Blitz September 28 2021"]
[White "Pastar, Slaven"]
[Black "Petrova, Irina"]
[WhiteFideId "14402718"]
[BlackFideId "14124122"]
[WhiteElo "2150"]
[BlackElo "2022"]
[Result "1-0"]
[Round "11"]
[TimeControl "180+1"]
[Date "2021.09.28"]
[WhiteClock "0:01:30"]
[BlackClock "0:00:05"]

1. b3 {[%clk 0:03:00]}  d6 {[%clk 0:03:00]} 2. Bb2 {[%clk 0:03:00]}  e5 {[%clk 0:03:00]} 3. d4 {[%clk 0:02:59]}  exd4 {[%clk 0:02:58]} 4. Qxd4 {[%clk 0:02:59]}  Nc6 {[%clk 0:02:58]} 5. Qd2 {[%clk 0:02:57]}  Nf6 {[%clk 0:02:58]} 6. Nc3 {[%clk 0:02:58]}  Be7 {[%clk 0:02:57]} 7. Nf3 {[%clk 0:02:57]}  O-O {[%clk 0:02:57]} 8. h4 {[%clk 0:02:57]}  Bf5 {[%clk 0:02:50]} 9. h5 {[%clk 0:02:52]}  h6 {[%clk 0:02:49]} 10. e3 {[%clk 0:02:49]}  Ne4 {[%clk 0:02:47]} 11. Nxe4 {[%clk 0:02:48]}  Bxe4 {[%clk 0:02:48]} 12. Bd3 {[%clk 0:02:47]}  Bxd3 {[%clk 0:02:46]} 13. Qxd3 {[%clk 0:02:45]}  Bf6 {[%clk 0:02:46]} 14. O-O-O {[%clk 0:02:43]}  Bxb2+ {[%clk 0:02:45]} 15. Kxb2 {[%clk 0:02:44]}  Qf6+ {[%clk 0:02:45]} 16. Qc3 {[%clk 0:02:33]}  Qxc3+ {[%clk 0:02:44]} 17. Kxc3 {[%clk 0:02:33]}  a5 {[%clk 0:02:44]} 18. g4 {[%clk 0:02:33]}  a4 {[%clk 0:02:41]} 19. g5 {[%clk 0:02:33]}  axb3 {[%clk 0:02:36]} 20. axb3 {[%clk 0:02:32]}  Ra5 {[%clk 0:02:33]} 21. Rdg1 {[%clk 0:02:21]}  Kh7 {[%clk 0:02:29]} 22. Rg3 {[%clk 0:02:10]}  Ne7 {[%clk 0:02:01]} 23. Rhg1 {[%clk 0:02:05]}  Nf5 {[%clk 0:02:00]} 24. Rg4 {[%clk 0:02:05]}  Rfa8 {[%clk 0:01:26]} 25. gxh6 {[%clk 0:02:03]}  gxh6 {[%clk 0:01:27]} 26. e4 {[%clk 0:02:02]}  Rc5+ {[%clk 0:01:12]} 27. Kb2 {[%clk 0:02:02]}  Ne7 {[%clk 0:01:06]} 28. Rg7+ {[%clk 0:01:46]}  Kh8 {[%clk 0:01:06]} 29. Rxf7 {[%clk 0:01:46]}  Re8 {[%clk 0:00:50]} 30. Rgg7 {[%clk 0:01:44]}  Nc8 {[%clk 0:00:45]} 31. Nh4 {[%clk 0:01:41]}  Rg5 {[%clk 0:00:36]} 32. Rh7+ {[%clk 0:01:37]}  Kg8 {[%clk 0:00:35]} 33. Ng6 {[%clk 0:01:37]}  Rxg6 {[%clk 0:00:11]} 34. hxg6 {[%clk 0:01:38]}  Nb6 {[%clk 0:00:10]} 35. Rfg7+ {[%clk 0:01:29]}  Kf8 {[%clk 0:00:09]} 36. Rxc7 {[%clk 0:01:30]}  Kg8 {[%clk 0:00:05]} 37. Rcg7+ {[%clk 0:01:29]}  Kf8 {[%clk 0:00:05]} 38. Rxb7 {[%clk 0:01:30]} 1-0


[Site "https://www.chess.com"]

[Event "Titled Tuesday Blitz September 28 2021"]
[White "Pasti, Aron"]
[Black "Wilson, Elvin"]
[WhiteFideId "785857"]
[BlackFideId "2014874"]
[WhiteElo "2080"]
[BlackElo "2306"]
[Result "1/2-1/2"]
[Round "11"]
[TimeControl "180+1"]
[Date "2021.09.28"]
[WhiteClock "0:00:05"]
[BlackClock "0:00:09"]

1. e4 {[%clk 0:03:00]}  e6 {[%clk 0:02:59]} 2. d4 {[%clk 0:03:00]}  d5 {[%clk 0:02:59]} 3. Nc3 {[%clk 0:03:01]}  Bb4 {[%clk 0:02:54]} 4. e5 {[%clk 0:03:01]}  c5 {[%clk 0:02:46]} 5. Bd2 {[%clk 0:02:56]}  Ne7 {[%clk 0:02:37]} 6. a3 {[%clk 0:02:54]}  Bxc3 {[%clk 0:02:31]} 7. Bxc3 {[%clk 0:02:54]}  cxd4 {[%clk 0:02:25]} 8. Bxd4 {[%clk 0:02:55]}  Nbc6 {[%clk 0:02:25]} 9. c3 {[%clk 0:02:49]}  Qc7 {[%clk 0:02:19]} 10. Nf3 {[%clk 0:02:48]}  Ng6 {[%clk 0:02:19]} 11. h4 {[%clk 0:02:40]}  Ngxe5 {[%clk 0:02:14]} 12. Nxe5 {[%clk 0:02:39]}  Nxe5 {[%clk 0:02:14]} 13. Qh5 {[%clk 0:02:40]}  Ng6 {[%clk 0:01:50]} 14. Bxg7 {[%clk 0:02:39]}  Rf8 {[%clk 0:01:24]} 15. Bxf8 {[%clk 0:02:32]}  Nxf8 {[%clk 0:01:24]} 16. Be2 {[%clk 0:02:23]}  Bd7 {[%clk 0:01:22]} 17. O-O {[%clk 0:02:23]}  Ba4 {[%clk 0:01:14]} 18. c4 {[%clk 0:02:22]}  d4 {[%clk 0:01:08]} 19. c5 {[%clk 0:02:22]}  O-O-O {[%clk 0:01:03]} 20. Bd3 {[%clk 0:02:18]}  Rd5 {[%clk 0:00:57]} 21. Qh6 {[%clk 0:02:17]}  Qd8 {[%clk 0:00:47]} 22. b3 {[%clk 0:02:04]}  Bc6 {[%clk 0:00:36]} 23. b4 {[%clk 0:01:48]}  Re5 {[%clk 0:00:26]} 24. b5 {[%clk 0:01:47]}  Be4 {[%clk 0:00:20]} 25. Qf4 {[%clk 0:01:29]}  Qd5 {[%clk 0:00:20]} 26. Bxe4 {[%clk 0:01:26]}  Rxe4 {[%clk 0:00:19]} 27. Qf3 {[%clk 0:01:27]}  Ng6 {[%clk 0:00:16]} 28. Qxf7 {[%clk 0:01:26]}  Rg4 {[%clk 0:00:14]} 29. f3 {[%clk 0:00:38]}  Nf4 {[%clk 0:00:12]} 30. Qe8+ {[%clk 0:00:27]}  Kc7 {[%clk 0:00:12]} 31. b6+ {[%clk 0:00:27]}  axb6 {[%clk 0:00:11]} 32. cxb6+ {[%clk 0:00:27]}  Kxb6 {[%clk 0:00:11]} 33. Rab1+ {[%clk 0:00:25]}  Ka7 {[%clk 0:00:10]} 34. Rb2 {[%clk 0:00:16]}  Nh3+ {[%clk 0:00:09]} 35. Kh2 {[%clk 0:00:14]}  Rxh4 {[%clk 0:00:10]} 36. gxh3 {[%clk 0:00:07]}  Qe5+ {[%clk 0:00:09]} 37. f4 {[%clk 0:00:07]}  Qe3 {[%clk 0:00:09]} 38. Qa4+ {[%clk 0:00:07]}  Kb8 {[%clk 0:00:09]} 39. Qe8+ {[%clk 0:00:07]}  Ka7 {[%clk 0:00:09]} 40. Qa4+ {[%clk 0:00:07]}  Kb8 {[%clk 0:00:09]} 41. Qe8+ {[%clk 0:00:05]}  Ka7 {[%clk 0:00:09]} 1/2-1/2


[Site "https://www.chess.com"]

[Event "Titled Tuesday Blitz September 28 2021"]
[White "Petesch, Gabriel"]
[Black "Valdes Romero, Leonardo"]
[WhiteFideId "2032465"]
[BlackFideId "6500331"]
[WhiteElo "2374"]
[BlackElo "2497"]
[Result "1-0"]
[Round "11"]
[TimeControl "180+1"]
[Date "2021.09.28"]
[WhiteClock "0:00:58"]
[BlackClock "0:01:23"]

1. Nf3 {[%clk 0:03:00]}  Nf6 {[%clk 0:02:57]} 2. g3 {[%clk 0:03:01]}  d6 {[%clk 0:02:57]} 3. Bg2 {[%clk 0:03:02]}  Nbd7 {[%clk 0:02:57]} 4. O-O {[%clk 0:03:03]}  e5 {[%clk 0:02:57]} 5. d4 {[%clk 0:03:04]}  Be7 {[%clk 0:02:56]} 6. b3 {[%clk 0:03:04]}  c6 {[%clk 0:02:57]} 7. Bb2 {[%clk 0:03:05]}  Qc7 {[%clk 0:02:57]} 8. a4 {[%clk 0:03:04]}  O-O {[%clk 0:02:57]} 9. Nbd2 {[%clk 0:03:04]}  Re8 {[%clk 0:02:57]} 10. dxe5 {[%clk 0:03:02]}  dxe5 {[%clk 0:02:57]} 11. Nc4 {[%clk 0:03:03]}  Bf8 {[%clk 0:02:55]} 12. e3 {[%clk 0:03:03]}  a5 {[%clk 0:02:53]} 13. Qe2 {[%clk 0:03:02]}  e4 {[%clk 0:02:53]} 14. Nfd2 {[%clk 0:02:56]}  g6 {[%clk 0:02:48]} 15. g4 {[%clk 0:02:46]}  h6 {[%clk 0:02:45]} 16. h4 {[%clk 0:02:36]}  Bg7 {[%clk 0:02:44]} 17. g5 {[%clk 0:02:34]}  hxg5 {[%clk 0:02:45]} 18. hxg5 {[%clk 0:02:34]}  Nh7 {[%clk 0:02:33]} 19. Bxg7 {[%clk 0:02:31]}  Kxg7 {[%clk 0:02:34]} 20. Nxe4 {[%clk 0:02:21]}  Ne5 {[%clk 0:02:32]} 21. Ncd6 {[%clk 0:02:08]}  Rh8 {[%clk 0:02:29]} 22. f4 {[%clk 0:02:04]}  Bg4 {[%clk 0:02:24]} 23. Qd2 {[%clk 0:01:59]}  Nd7 {[%clk 0:02:19]} 24. Qc3+ {[%clk 0:01:52]}  Kg8 {[%clk 0:02:20]} 25. Kf2 {[%clk 0:01:23]}  Bf5 {[%clk 0:02:15]} 26. Rh1 {[%clk 0:01:18]}  Bxe4 {[%clk 0:02:14]} 27. Nxe4 {[%clk 0:01:18]}  Re8 {[%clk 0:02:12]} 28. Rh6 {[%clk 0:01:12]}  Re6 {[%clk 0:01:22]} 29. Rah1 {[%clk 0:01:08]}  Qd8 {[%clk 0:01:23]} 30. Qxh8+ {[%clk 0:00:57]}  Kxh8 {[%clk 0:01:22]} 31. Rxh7+ {[%clk 0:00:57]}  Kg8 {[%clk 0:01:23]} 32. Rh8+ {[%clk 0:00:58]}  Kg7 {[%clk 0:01:23]} 33. R1h7# {[%clk 0:00:58]} 1-0


[Site "https://www.chess.com"]

[Event "Titled Tuesday Blitz September 28 2021"]
[White "Pridorozhni, Aleksei"]
[Black "Zubov, Alexander"]
[WhiteFideId "4127870"]
[BlackFideId "14109409"]
[WhiteElo "2841"]
[BlackElo "2971"]
[Result "0-1"]
[Round "11"]
[TimeControl "180+1"]
[Date "2021.09.28"]
[WhiteClock "0:00:41"]
[BlackClock "0:00:03"]

1. e4 {[%clk 0:03:00]}  c5 {[%clk 0:02:58]} 2. Nf3 {[%clk 0:03:00]}  e6 {[%clk 0:02:57]} 3. d4 {[%clk 0:03:00]}  cxd4 {[%clk 0:02:58]} 4. Nxd4 {[%clk 0:03:01]}  a6 {[%clk 0:02:59]} 5. Nc3 {[%clk 0:02:58]}  b5 {[%clk 0:02:59]} 6. Bd3 {[%clk 0:02:55]}  Qb6 {[%clk 0:02:59]} 7. Nf3 {[%clk 0:02:54]}  Qc7 {[%clk 0:02:58]} 8. O-O {[%clk 0:02:53]}  Bb7 {[%clk 0:02:58]} 9. Re1 {[%clk 0:02:52]}  Be7 {[%clk 0:02:58]} 10. e5 {[%clk 0:02:49]}  f5 {[%clk 0:02:58]} 11. a3 {[%clk 0:02:30]}  Bc5 {[%clk 0:02:47]} 12. Be3 {[%clk 0:02:24]}  Ne7 {[%clk 0:01:55]} 13. Bxb5 {[%clk 0:02:18]}  O-O {[%clk 0:01:53]} 14. Bxc5 {[%clk 0:02:12]}  Qxc5 {[%clk 0:01:53]} 15. Bf1 {[%clk 0:02:12]}  Ng6 {[%clk 0:01:49]} 16. Qd4 {[%clk 0:02:10]}  Qc7 {[%clk 0:01:46]} 17. Rad1 {[%clk 0:02:07]}  Bxf3 {[%clk 0:01:37]} 18. gxf3 {[%clk 0:02:08]}  Nc6 {[%clk 0:01:31]} 19. Qd6 {[%clk 0:02:08]}  Qxd6 {[%clk 0:01:27]} 20. Rxd6 {[%clk 0:02:09]}  Ncxe5 {[%clk 0:01:27]} 21. Bg2 {[%clk 0:01:57]}  Rab8 {[%clk 0:01:22]} 22. Na4 {[%clk 0:01:57]}  Rfc8 {[%clk 0:01:11]} 23. c3 {[%clk 0:01:57]}  a5 {[%clk 0:01:03]} 24. f4 {[%clk 0:01:54]}  Nc4 {[%clk 0:01:01]} 25. Rxd7 {[%clk 0:01:55]}  Nxf4 {[%clk 0:01:02]} 26. Rd4 {[%clk 0:01:48]}  g5 {[%clk 0:00:58]} 27. Bf1 {[%clk 0:01:37]}  Nxb2 {[%clk 0:00:55]} 28. Nxb2 {[%clk 0:01:36]}  Rxb2 {[%clk 0:00:56]} 29. c4 {[%clk 0:01:34]}  Kg7 {[%clk 0:00:53]} 30. Rd7+ {[%clk 0:01:23]}  Kg6 {[%clk 0:00:53]} 31. Ra7 {[%clk 0:01:24]}  Rc5 {[%clk 0:00:52]} 32. Rd1 {[%clk 0:01:18]}  h5 {[%clk 0:00:51]} 33. Rdd7 {[%clk 0:01:13]}  g4 {[%clk 0:00:42]} 34. Rab7 {[%clk 0:00:59]}  Ra2 {[%clk 0:00:27]} 35. Rb5 {[%clk 0:00:59]}  Rxb5 {[%clk 0:00:25]} 36. cxb5 {[%clk 0:01:00]}  Rxa3 {[%clk 0:00:25]} 37. b6 {[%clk 0:01:00]}  Rb3 {[%clk 0:00:21]} 38. b7 {[%clk 0:01:00]}  a4 {[%clk 0:00:19]} 39. f3 {[%clk 0:01:01]}  a3 {[%clk 0:00:18]} 40. fxg4 {[%clk 0:00:55]}  hxg4 {[%clk 0:00:12]} 41. Rd4 {[%clk 0:00:47]}  Kg5 {[%clk 0:00:07]} 42. Ba6 {[%clk 0:00:40]}  Rxb7 {[%clk 0:00:03]} 43. Ra4 {[%clk 0:00:41]}  Rb3 {[%clk 0:00:03]} 44. Bc4 {[%clk 0:00:40]}  Rc3 {[%clk 0:00:04]} 45. Kf2 {[%clk 0:00:40]}  e5 {[%clk 0:00:04]} 46. Ke1 {[%clk 0:00:40]}  e4 {[%clk 0:00:03]} 47. Bf7 {[%clk 0:00:40]}  e3 {[%clk 0:00:03]} 48. Kd1 {[%clk 0:00:39]}  e2+ {[%clk 0:00:03]} 49. Kd2 {[%clk 0:00:40]}  Re3 {[%clk 0:00:03]} 50. Kc2 {[%clk 0:00:41]}  e1=Q {[%clk 0:00:03]} 0-1


[Site "https://www.chess.com"]